bitfinex/quotes_BTCUSD_20240818
["timestamp","ask_amount","ask_price","bid_price","bid_amount"]
[1724018390340,0.000824,59551.0,59550.0,0.85610083]
[1724018390535,0.000824,59551.0,59550.0,0.7333008]
[1724018391168,0.000824,59551.0,59550.0,0.7425534]
[1724018391369,0.000824,59551.0,59550.0,0.9776494]
[1724018391594,0.000824,59551.0,59550.0,0.96839677]
[1724018391969,0.000824,59551.0,59550.0,0.73330077]
[1724018392193,0.000824,59551.0,59550.0,0.7425534]
[1724018392408,0.000824,59551.0,59550.0,0.9776494]
[1724018392694,0.000824,59551.0,59550.0,0.7425534]
[1724018393060,0.000824,59551.0,59550.0,0.9776494]
[1724018394044,0.000824,59551.0,59550.0,0.93434752]
[1724018394241,0.000824,59551.0,59550.0,0.97764946]
[1724018396978,0.000824,59551.0,59550.0,1.11612985]
[1724018397172,0.000824,59551.0,59550.0,1.18224946]
[1724018397451,0.000824,59551.0,59550.0,1.41834546]
[1724018397921,0.000824,59551.0,59550.0,1.41434546]
[1724018398137,0.000824,59551.0,59550.0,1.351532]
[1724018398344,0.000824,59551.0,59550.0,1.41434243]
[1724018398541,0.000824,59551.0,59550.0,1.40534243]
[1724018399099,0.000824,59553.0,59552.0,1.058896]
[1724018399299,0.000824,59553.0,59552.0,1.31726097]
[1724018399501,0.000824,59553.0,59552.0,1.32126097]
[1724018400350,0.000824,59553.0,59552.0,1.31726097]
[1724018400651,0.000824,59560.0,59559.0,1.469035]
[1724018400825,0.0617,59572.0,59571.0,0.822545]
[1724018401005,0.0792,59577.0,59571.0,0.822545]
[1724018401006,0.1442,59577.0,59576.0,0.117496]
[1724018401205,0.1442,59577.0,59576.0,0.37299455]
[1724018401419,0.731675,59577.0,59576.0,0.02050555]
[1724018401621,0.258204,59572.0,59571.0,0.082]
[1724018401896,0.493213,59572.0,59571.0,0.082]
[1724018402102,0.31271546,59585.0,59560.0,0.03404639]
[1724018402103,0.0775,59568.0,59560.0,0.03404639]
[1724018402286,0.0775,59568.0,59556.0,0.470144]
[1724018402287,0.0775,59568.0,59567.0,0.082]
[1724018402288,0.235027,59568.0,59567.0,0.082]
[1724018402500,0.493239,59568.0,59567.0,0.082]
[1724018403459,0.0788,59567.0,59561.0,0.117525]
[1724018403635,0.0778,59563.0,59562.0,0.02051023]
[1724018404275,0.0778,59563.0,59562.0,0.02051025]
[1724018404743,0.1447,59563.0,59562.0,0.10251025]
[1724018404944,0.262222,59563.0,59562.0,0.10251025]
[1724018405328,0.262222,59563.0,59562.0,0.082]
[1724018405541,0.732312,59563.0,59562.0,0.0205104]
[1724018405738,0.235002,59574.0,59551.0,0.082]
[1724018405739,0.117544,59552.0,59551.0,0.082]
[1724018405940,0.494432,59552.0,59551.0,0.082]
[1724018406095,0.117554,59547.0,59545.0,0.0829064]
[1724018406292,0.259354,59547.0,59545.0,0.0829064]
[1724018406498,0.72957,59547.0,59545.0,0.0009064]
[1724018408680,0.73557,59547.0,59546.0,0.0019064]
[1724018411377,0.73490813,59547.0,59546.0,0.0019064]
[1724018412772,0.73490813,59547.0,59546.0,0.1194624]
[1724018412773,0.1478,59547.0,59546.0,0.1194624]
[1724018412971,0.1478,59547.0,59546.0,0.0019064]
[1724018413205,0.1478,59547.0,59546.0,0.1194624]
[1724018413408,0.1478,59547.0,59546.0,0.5926864]
[1724018413409,0.006,59547.0,59546.0,0.5926864]
[1724018413617,0.006,59547.0,59546.0,0.8277984]
[1724018414531,0.067,59559.0,59548.0,0.235103]
[1724018414738,0.067,59559.0,59546.0,0.0009064]
[1724018414739,0.0640508,59559.0,59558.0,0.352596]
[1724018414947,0.0640508,59559.0,59558.0,0.58766]
[1724018415144,0.0640508,59559.0,59558.0,0.352596]
[1724018415985,0.0660508,59559.0,59558.0,0.352596]
[1724018416391,0.0660508,59559.0,59558.0,0.58766]
[1724018416392,0.002,59559.0,59558.0,0.58766]
[1724018419303,0.000824,59561.0,59560.0,0.352585]
[1724018419463,0.000824,59561.0,59560.0,0.587642]
[1724018419924,0.000824,59561.0,59560.0,0.822699]
[1724018420227,0.000824,59561.0,59560.0,1.145556]
[1724018420445,0.000824,59561.0,59560.0,1.31996136]
[1724018420847,0.000824,59561.0,59560.0,1.4915159]
[1724018421251,0.000824,59561.0,59560.0,1.53481607]
[1724018421704,0.000824,59561.0,59560.0,1.49151164]
[1724018421875,0.000824,59561.0,59560.0,1.53580359]
[1724018422298,0.000824,59561.0,59560.0,1.58600747]
[1724018422553,0.000824,59561.0,59560.0,1.58500747]
[1724018422891,0.001824,59561.0,59560.0,1.59900747]
[1724018423149,0.57287509,59580.0,59579.0,0.587455]
[1724018423653,0.06327294,59580.0,59579.0,0.587455]
[1724018423891,0.0611,59580.0,59579.0,0.587455]
[1724018424106,0.0789,59582.0,59581.0,0.587435]
[1724018424306,0.0652,59585.0,59581.0,0.587435]
[1724018424307,0.0652,59585.0,59584.0,0.352443]
[1724018424943,0.0652,59585.0,59584.0,0.587405]
[1724018425113,0.0652,59585.0,59584.0,0.352443]
[1724018425317,0.0652,59585.0,59584.0,0.587405]
[1724018425454,0.0652,59585.0,59584.0,0.352443]
[1724018425914,0.0652,59585.0,59584.0,0.588405]
[1724018426117,0.0652,59585.0,59584.0,0.587405]
[1724018426333,0.0789,59587.0,59586.0,0.352431]
[1724018426517,0.0622,59589.0,59588.0,0.352419]
[1724018426720,0.06437116,59589.0,59588.0,0.352419]
[1724018426862,0.06437116,59589.0,59588.0,0.587365]
[1724018427064,0.00827,59590.0,59588.0,0.469892]
[1724018427460,0.00827,59590.0,59589.0,0.59071073]
[1724018427651,0.00827,59590.0,59589.0,0.352413]
[1724018428056,0.01047152,59590.0,59589.0,0.352413]
[1724018428464,0.00827,59590.0,59589.0,0.352413]
[1724018428899,0.00827,59590.0,59589.0,0.357413]
[1724018429176,0.01047152,59590.0,59589.0,0.352413]
[1724018429517,0.00827,59590.0,59589.0,0.352413]
[1724018429723,0.00827,59590.0,59583.0,0.234964]
[1724018429917,0.00827,59590.0,59574.0,0.0319]
[1724018429918,0.0761,59589.0,59581.0,0.117486]
[1724018430130,0.117478,59586.0,59581.0,0.117486]
[1724018430331,0.117481,59584.0,59577.0,0.234988]
[1724018430566,0.117481,59584.0,59568.0,0.101]
[1724018430567,0.0758,59583.0,59570.0,0.2051]
[1724018430731,0.0758,59579.0,59573.0,0.235004]
[1724018430951,0.0758,59579.0,59570.0,0.2051]
[1724018431134,0.0758,59579.0,59573.0,0.235004]
[1724018431135,0.00220861,59578.0,59573.0,0.235004]
[1724018431345,0.00220861,59578.0,59571.0,0.235012]
[1724018431346,0.0611,59577.0,59571.0,0.235012]
[1724018431545,0.0611,59577.0,59573.0,0.117502]
[1724018431788,0.00220244,59576.0,59573.0,0.117502]
[1724018431991,0.00220244,59576.0,59573.0,0.125502]
[1724018432164,0.00220244,59576.0,59573.0,0.117502]
[1724018432396,0.00220244,59576.0,59571.0,0.117505]
[1724018432593,0.0758,59575.0,59571.0,0.117504]
[1724018432773,0.0758,59575.0,59571.0,0.01]
[1724018432976,0.00220146,59574.0,59571.0,0.117506]
[1724018433411,0.00220146,59574.0,59570.0,0.117508]
[1724018433852,0.00220146,59574.0,59568.0,0.2051]
[1724018433853,0.00220146,59574.0,59571.0,0.117506]
[1724018434574,0.00220146,59574.0,59569.0,0.235019]
[1724018434776,0.1424,59571.0,59562.0,0.2051]
[1724018435080,0.117518,59565.0,59561.0,0.117526]
[1724018435283,0.14455739,59564.0,59559.0,0.23506]
[1724018435504,0.14455739,59564.0,59560.0,0.117527]
[1724018436104,0.14455739,59564.0,59558.0,0.0009064]
[1724018436105,0.117525,59562.0,59558.0,0.0009064]
[1724018436313,0.235021,59569.0,59558.0,0.0009064]
[1724018436314,0.26503,59559.0,59558.0,0.0009064]
[1724018436528,0.73732928,59559.0,59558.0,0.0009064]
[1724018438499,0.73732928,59559.0,59558.0,0.0079064]
[1724018438722,0.73732928,59559.0,59558.0,0.0009064]
[1724018438933,0.73732928,59559.0,59558.0,0.0109064]
[1724018439287,0.73732928,59559.0,59558.0,0.0009064]
[1724018439669,0.73732928,59559.0,59546.0,0.0009064]
[1724018439670,0.262354,59547.0,59546.0,0.0009064]
[1724018440143,0.49961285,59547.0,59546.0,0.0009064]
[1724018440974,0.14695085,59547.0,59546.0,0.0009064]
[1724018441177,0.14695085,59547.0,59546.0,0.3535744]
[1724018441559,0.14695085,59547.0,59546.0,0.1184624]
[1724018442012,0.14695085,59547.0,59546.0,0.0009064]
[1724018442423,0.26650485,59547.0,59546.0,0.0009064]
[1724018442804,0.14895085,59547.0,59546.0,0.0009064]
[1724018443646,0.14895085,59547.0,59546.0,0.1184624]
[1724018443792,0.1468,59547.0,59546.0,0.3535744]
[1724018443999,0.002,59547.0,59546.0,0.5886864]
[1724018444231,0.002,59547.0,59546.0,0.8237984]
[1724018444515,0.002,59547.0,59546.0,0.8247984]
[1724018444917,0.002,59547.0,59546.0,0.9097984]
[1724018445521,0.0622,59561.0,59559.0,0.117529]
[1724018445844,0.00212659,59560.0,59559.0,0.117528]
[1724018446619,0.00212659,59560.0,59559.0,0.352589]
[1724018446832,0.0622,59561.0,59551.0,0.235091]
[1724018446833,0.0622,59561.0,59555.0,0.235075]
[1724018447029,0.0622,59561.0,59557.0,0.117533]
[1724018447229,0.00212824,59560.0,59557.0,0.117533]
[1724018447478,0.00212824,59560.0,59550.0,0.235095]
[1724018447691,0.00212824,59560.0,59559.0,0.11753]
[1724018448098,0.00712824,59560.0,59559.0,0.11753]
[1724018448296,0.00212824,59560.0,59559.0,0.11753]
[1724018448496,0.00212824,59560.0,59559.0,0.352591]
[1724018448631,0.00612824,59560.0,59559.0,0.587652]
[1724018448839,0.000824,59578.0,59559.0,0.587652]
[1724018448840,0.0606,59567.0,59559.0,0.470122]
[1724018449036,0.0606,59567.0,59565.0,0.117517]
[1724018449281,0.0606,59567.0,59565.0,0.113517]
[1724018449438,0.0606,59567.0,59562.0,0.0033575]
[1724018449439,0.00214788,59566.0,59562.0,0.0033575]
[1724018449640,0.00214788,59566.0,59565.0,0.117518]
[1724018449843,0.0606,59567.0,59566.0,0.117516]
[1724018450039,0.0606,59567.0,59566.0,0.352549]
[1724018450650,0.254405,59572.0,59567.0,0.117513]
[1724018450834,0.254405,59572.0,59567.0,0.117514]
[1724018451030,0.1369,59572.0,59567.0,0.235028]
[1724018451438,0.1369,59572.0,59567.0,0.117514]
[1724018452041,0.255405,59572.0,59567.0,0.117514]
[1724018452447,0.117509,59570.0,59566.0,0.117516]
[1724018452823,0.490416,59572.0,59566.0,0.117516]
[1724018453027,0.117507,59571.0,59567.0,0.117514]
[1724018453257,0.117507,59571.0,59565.0,0.235035]
[1724018453655,0.1379,59572.0,59562.0,0.235048]
[1724018453943,0.1379,59572.0,59546.0,0.02141208]
[1724018453944,0.0765,59571.0,59552.0,0.2051]
[1724018454143,0.51277509,59580.0,59557.0,0.117533]
[1724018454144,0.1435,59561.0,59557.0,0.117533]
[1724018454256,0.1435,59561.0,59557.0,0.117532]
[1724018454456,0.00213008,59560.0,59559.0,0.11753]
[1724018454891,0.00213008,59560.0,59552.0,0.2051]
[1724018455112,0.00213008,59560.0,59558.0,0.117531]
[1724018455543,0.1435,59561.0,59558.0,0.117531]
[1724018455763,0.00213008,59560.0,59558.0,0.117531]
[1724018456294,0.1435,59561.0,59558.0,0.117531]
[1724018456494,0.00215511,59560.0,59558.0,0.117531]
[1724018457697,0.00215511,59560.0,59558.0,0.120531]
[1724018457882,0.00215511,59560.0,59558.0,0.003]
[1724018458095,0.11753,59559.0,59558.0,0.003]
[1724018458324,0.352591,59559.0,59558.0,0.003]
[1724018458453,0.35474298,59559.0,59558.0,0.003]
[1724018458854,0.35474298,59559.0,59553.0,0.117541]
[1724018458855,0.117533,59558.0,59553.0,0.117541]
[1724018459262,0.00215013,59557.0,59548.0,0.235102]
[1724018459466,0.00215013,59557.0,59556.0,0.117536]
[1724018459668,0.117529,59560.0,59555.0,0.117537]
[1724018460089,0.00212915,59559.0,59556.0,0.117535]
[1724018460337,0.000824,59560.0,59555.0,0.235076]
[1724018460338,0.000824,59560.0,59557.0,0.117533]
[1724018460541,0.000824,59560.0,59559.0,0.352591]
[1724018460751,0.000824,59560.0,59559.0,0.587652]
[1724018460980,0.000824,59560.0,59559.0,1.027813]
[1724018461555,0.000824,59560.0,59559.0,1.28437992]
[1724018461757,0.000824,59560.0,59559.0,1.52567992]
[1724018461968,0.000824,59560.0,59559.0,1.53493045]
[1724018462173,0.000824,59560.0,59559.0,1.54093045]
[1724018462320,0.000824,59560.0,59559.0,1.71248499]
[1724018462523,0.000824,59560.0,59559.0,1.74653529]
[1724018462730,0.000824,59560.0,59559.0,1.74253529]
[1724018463136,0.001824,59560.0,59559.0,1.75553198]
[1724018463313,0.001824,59560.0,59559.0,1.73502864]
[1724018463510,0.001824,59560.0,59559.0,1.75553115]
[1724018464388,0.001824,59560.0,59559.0,1.70848137]
[1724018464389,0.000824,59560.0,59559.0,1.70848137]
[1724018464599,0.000824,59560.0,59559.0,1.74253168]
[1724018465003,0.001824,59560.0,59559.0,1.75653168]
[1724018465836,0.001824,59560.0,59559.0,2.05045704]
[1724018465990,0.001824,59560.0,59559.0,1.99159268]
[1724018466198,0.0648,59580.0,59577.0,0.587475]
[1724018466394,0.51177509,59584.0,59577.0,0.60797772]
[1724018466610,0.00282399,59578.0,59577.0,0.92716772]
[1724018466818,0.000824,59578.0,59577.0,0.92716772]
[1724018467254,0.000824,59578.0,59577.0,0.92916772]
[1724018467885,0.000824,59578.0,59577.0,1.36071226]
[1724018468303,0.000824,59578.0,59577.0,1.36371226]
[1724018468498,0.000824,59578.0,59577.0,1.36071226]
[1724018468716,0.000824,59578.0,59577.0,0.92616772]
[1724018469040,0.000824,59578.0,59577.0,0.92716772]
[1724018469363,0.000824,59578.0,59577.0,0.94116283]
[1724018469530,0.000824,59578.0,59577.0,0.94116284]
[1724018469724,0.000824,59578.0,59577.0,0.92916284]
[1724018469923,0.000824,59578.0,59577.0,0.85696284]
[1724018470324,0.000824,59578.0,59577.0,0.839465]
[1724018470499,0.000824,59578.0,59577.0,0.85996284]
[1724018470700,0.000824,59578.0,59577.0,0.839465]
[1724018470969,0.000824,59578.0,59577.0,0.85996284]
[1724018471171,0.000824,59578.0,59577.0,0.84596284]
[1724018471372,0.000824,59578.0,59577.0,0.825465]
[1724018471574,0.000824,59578.0,59577.0,0.85696284]
[1724018471752,0.000824,59578.0,59577.0,0.833465]
[1724018471904,0.000824,59578.0,59577.0,0.84396284]
[1724018472106,0.000824,59578.0,59577.0,0.85796284]
[1724018472305,0.000824,59578.0,59577.0,0.839465]
[1724018472508,0.000824,59578.0,59577.0,0.85996284]
[1724018472932,0.000824,59578.0,59577.0,0.839465]
[1724018473123,0.000824,59578.0,59577.0,0.85996284]
[1724018473277,0.000824,59578.0,59577.0,0.837465]
[1724018473479,0.000824,59578.0,59577.0,0.85696284]
[1724018473779,0.000824,59578.0,59577.0,0.837465]
[1724018473979,0.000824,59578.0,59577.0,0.85796284]
[1724018474193,0.000824,59578.0,59577.0,0.837465]
[1724018474389,0.000824,59578.0,59577.0,0.85796284]
[1724018474591,0.000824,59578.0,59577.0,0.836465]
[1724018474855,0.000824,59578.0,59577.0,0.85696284]
[1724018475137,0.000824,59578.0,59577.0,0.84596284]
[1724018475273,0.000824,59578.0,59577.0,0.839465]
[1724018475487,0.000824,59578.0,59577.0,0.85996284]
[1724018475952,0.000824,59578.0,59577.0,0.88396284]
[1724018476159,0.000824,59578.0,59577.0,0.96416284]
[1724018476359,0.000824,59578.0,59577.0,1.19915284]
[1724018476565,0.000824,59578.0,59577.0,1.73839738]
[1724018476765,0.000824,59578.0,59577.0,1.49215645]
[1724018476973,0.000824,59578.0,59577.0,1.51265278]
[1724018477532,0.000824,59578.0,59577.0,1.49865278]
[1724018477935,0.000824,59578.0,59577.0,1.51265278]
[1724018478140,0.000824,59578.0,59577.0,1.49865278]
[1724018478540,0.000824,59578.0,59577.0,1.51265278]
[1724018479088,0.000824,59578.0,59577.0,1.74764278]
[1724018479291,0.00827,59591.0,59589.0,0.823297]
[1724018479484,0.00827,59591.0,59589.0,1.028397]
[1724018479662,0.00827,59591.0,59589.0,1.265339]
[1724018479862,0.00827,59591.0,59589.0,1.320939]
[1724018480244,0.00827,59591.0,59589.0,1.318939]
[1724018480464,0.00827,59591.0,59589.0,1.49049354]
[1724018480684,0.00827,59591.0,59589.0,1.5129887]
[1724018481031,0.00827,59591.0,59589.0,1.51298847]
[1724018481515,0.00827,59591.0,59589.0,1.52298847]
[1724018481721,0.00827,59591.0,59589.0,1.51298847]
[1724018481898,0.00827,59591.0,59589.0,1.51498847]
[1724018482100,0.00827,59591.0,59589.0,1.52898847]
[1724018483085,0.00827,59591.0,59589.0,1.62898847]
[1724018484471,0.00827,59591.0,59589.0,1.61498847]
[1724018484690,0.00827,59591.0,59589.0,1.62898847]
[1724018485105,0.00827,59591.0,59589.0,1.61498847]
[1724018485295,0.00827,59591.0,59589.0,1.62898847]
[1724018485497,0.00827,59591.0,59589.0,1.61498847]
[1724018485735,0.0002,59599.0,59598.0,0.001]
[1724018485923,0.0002,59599.0,59598.0,0.4059081]
[1724018486144,0.00231507,59599.0,59598.0,0.9777221]
[1724018486346,0.00231507,59599.0,59598.0,1.1336291]
[1724018486347,0.0002,59599.0,59598.0,1.1336291]
[1724018486752,0.0002,59599.0,59598.0,1.1306291]
[1724018486958,0.0002,59599.0,59598.0,1.1316291]
[1724018487165,0.0002,59599.0,59598.0,1.15112219]
[1724018487582,0.0002,59599.0,59598.0,1.17712219]
[1724018487796,0.0002,59599.0,59598.0,1.17612219]
[1724018488013,0.0002,59599.0,59598.0,1.41402919]
[1724018488212,0.0002,59599.0,59598.0,1.50792919]
[1724018488652,0.0002,59599.0,59598.0,1.71208373]
[1724018489085,0.00013286,59599.0,59598.0,1.74612157]
[1724018489261,0.00013286,59599.0,59598.0,1.75536543]
[1724018489482,0.00013286,59599.0,59598.0,1.74136543]
[1724018489689,0.00826,59602.0,59600.0,0.827146]
[1724018489883,0.00826,59602.0,59600.0,1.14219363]
[1724018490392,0.00826,59602.0,59600.0,1.12170054]
[1724018490587,0.00826,59602.0,59600.0,1.14218904]
[1724018490817,0.00826,59602.0,59600.0,1.22598904]
[1724018491024,0.00826,59602.0,59600.0,1.2259889]
[1724018491511,0.00826,59602.0,59600.0,1.2399889]
[1724018491763,0.00826,59602.0,59600.0,1.2259889]
[1724018491895,0.00826,59602.0,59601.0,1.062027]
[1724018492113,0.00824,59613.0,59605.0,0.592197]
[1724018492321,0.00824,59613.0,59605.0,1.3242189]
[1724018492536,0.00824,59613.0,59610.0,0.591147]
[1724018492756,0.00824,59613.0,59610.0,1.1420489]
[1724018493704,0.00824,59613.0,59610.0,1.2547489]
[1724018494517,0.00824,59613.0,59610.0,1.2517997]
[1724018494726,0.00824,59613.0,59610.0,1.2507997]
[1724018494920,0.00824,59613.0,59610.0,1.1510997]
[1724018495140,0.00824,59613.0,59610.0,1.35619781]
[1724018495353,0.00824,59613.0,59610.0,1.34219781]
[1724018495574,0.00824,59613.0,59610.0,1.35619781]
[1724018495774,0.00824,59613.0,59610.0,1.34219781]
[1724018496187,0.00824,59613.0,59610.0,1.34419781]
[1724018497234,0.00824,59613.0,59610.0,1.35819781]
[1724018497553,0.00824,59613.0,59610.0,1.34419781]
[1724018497688,0.00824,59613.0,59610.0,1.35819781]
[1724018498119,0.00824,59613.0,59610.0,1.34419781]
[1724018498370,0.00824,59613.0,59610.0,1.35819781]
[1724018499628,0.00824,59613.0,59610.0,1.18459247]
[1724018499629,0.07544,59611.0,59610.0,1.18459247]
[1724018499832,0.07544,59611.0,59610.0,0.94973532]
[1724018500074,0.07544,59611.0,59610.0,1.18459432]
[1724018500282,0.07544,59611.0,59610.0,1.17059432]
[1724018500690,0.07544,59611.0,59610.0,1.18459432]
[1724018500899,0.07544,59611.0,59610.0,1.17059432]
[1724018501349,0.07544,59611.0,59610.0,1.16159432]
[1724018501557,0.07544,59611.0,59610.0,0.92673532]
[1724018503338,0.07544,59611.0,59610.0,0.92653213]
[1724018504278,0.07544,59611.0,59610.0,0.90604381]
[1724018504478,0.07544,59611.0,59610.0,0.92653285]
[1724018504700,0.07544,59611.0,59610.0,1.16139185]
[1724018504904,0.07544,59611.0,59610.0,1.14190281]
[1724018505127,0.00824,59613.0,59612.0,0.823982]
[1724018505297,0.00824,59613.0,59612.0,1.13902557]
[1724018506729,0.00824,59613.0,59612.0,1.15302557]
[1724018507134,0.00824,59613.0,59612.0,1.13902557]
[1724018507563,0.00824,59613.0,59612.0,1.15302557]
[1724018507796,0.00824,59613.0,59612.0,1.13902557]
[1724018508120,0.00824,59613.0,59612.0,1.15302557]
[1724018508323,0.00824,59613.0,59612.0,1.13902557]
[1724018508745,0.00824,59613.0,59612.0,1.37387757]
[1724018508964,0.00824,59613.0,59612.0,1.47596168]
[1724018509167,0.00824,59613.0,59612.0,1.41715106]
[1724018509382,0.00824,59613.0,59612.0,1.40790779]
[1724018509556,0.00824,59613.0,59612.0,1.41715106]
[1724018509753,0.00824,59613.0,59612.0,1.42190779]
[1724018509960,0.00824,59613.0,59612.0,1.41715106]
[1724018510165,0.00824,59613.0,59612.0,1.40790779]
[1724018510371,0.00824,59613.0,59612.0,1.43115106]
[1724018510632,0.00824,59613.0,59612.0,1.40790779]
[1724018510830,0.00824,59613.0,59612.0,1.43115106]
[1724018511665,0.00824,59613.0,59612.0,1.41715106]
[1724018513237,0.00824,59613.0,59612.0,1.43115106]
[1724018513455,0.00824,59613.0,59612.0,1.12777981]
[1724018513649,0.00824,59613.0,59612.0,1.19629828]
[1724018513862,0.00824,59613.0,59612.0,1.49974374]
[1724018514081,0.00824,59613.0,59612.0,1.26489174]
[1724018514277,0.00824,59613.0,59612.0,0.98676344]
[1724018514278,0.15544,59613.0,59612.0,0.98676344]
[1724018514490,0.15544,59613.0,59612.0,1.00679647]
[1724018514689,0.15544,59613.0,59612.0,0.52048544]
[1724018514833,0.15544,59613.0,59612.0,0.53448544]
[1724018515036,0.15744,59613.0,59612.0,0.53448544]
[1724018515237,0.274864,59613.0,59612.0,0.53448544]
[1724018515664,0.15744,59613.0,59612.0,0.53448544]
[1724018516213,0.15744,59613.0,59612.0,0.52048544]
[1724018516385,0.15744,59613.0,59612.0,0.53448544]
[1724018516603,0.15744,59613.0,59612.0,0.52048544]
[1724018517038,0.5106612,59613.0,59612.0,0.4334]
[1724018517248,0.7455092,59613.0,59612.0,0.4334]
[1724018517456,0.7455092,59613.0,59612.0,0.4364]
[1724018517868,0.7455092,59613.0,59612.0,0.4334]
[1724018518041,0.7455092,59613.0,59612.0,0.4354]
[1724018519471,0.7455092,59613.0,59612.0,0.4334]
[1724018519752,0.9803572,59613.0,59612.0,0.4334]
[1724018519945,0.9813572,59613.0,59612.0,0.4334]
[1724018521420,0.7465092,59613.0,59612.0,0.4334]
[1724018521620,0.5116612,59613.0,59612.0,0.4334]
[1724018522892,0.15844,59613.0,59612.0,0.4334]
[1724018523147,0.15644,59613.0,59612.0,1.02053]
[1724018523530,0.15644,59613.0,59612.0,1.255382]
[1724018523724,0.09174,59613.0,59612.0,1.27587151]
[1724018523923,0.00924,59613.0,59612.0,1.27587151]
[1724018524150,0.00924,59613.0,59612.0,1.48690729]
[1724018524353,0.00924,59613.0,59612.0,1.690234]
[1724018524508,0.00824,59613.0,59612.0,1.7559973]
[1724018524719,0.00824,59613.0,59612.0,1.92755184]
[1724018524946,0.00824,59613.0,59612.0,1.9776988]
[1724018525375,0.00824,59613.0,59612.0,1.92317763]
[1724018525548,0.00824,59613.0,59612.0,1.92754912]
[1724018526032,0.00824,59613.0,59612.0,1.93754912]
[1724018526221,0.00824,59613.0,59612.0,1.92754834]
[1724018526762,0.00824,59613.0,59612.0,2.01676878]
[1724018527060,0.00844,59619.0,59618.0,0.821898]
[1724018527275,0.00844,59619.0,59618.0,1.28431143]
[1724018527478,0.00844,59619.0,59618.0,1.30731143]
[1724018528059,0.00844,59619.0,59618.0,1.47886597]
[1724018528290,0.00844,59619.0,59618.0,1.5881074]
[1724018528618,0.00844,59619.0,59618.0,1.62214034]
[1724018529231,0.00844,59619.0,59618.0,1.63614034]
[1724018529632,0.00844,59619.0,59618.0,1.68630615]
[1724018530052,0.00844,59619.0,59618.0,1.99426381]
[1724018530258,0.00844,59619.0,59618.0,2.03549591]
[1724018530515,0.00844,59619.0,59618.0,1.63613736]
[1724018530921,0.00844,59619.0,59618.0,1.65688609]
[1724018531070,0.00844,59619.0,59618.0,1.7114019]
[1724018531478,0.00844,59619.0,59618.0,2.08352647]
[1724018531664,0.00844,59619.0,59618.0,2.08353433]
[1724018531861,0.00844,59619.0,59618.0,2.08153433]
[1724018532109,0.00844,59619.0,59618.0,2.08353433]
[1724018532487,0.00844,59619.0,59618.0,2.00826172]
[1724018533553,0.00844,59619.0,59618.0,2.00626172]
[1724018533788,0.00844,59619.0,59618.0,2.00826172]
[1724018533952,0.00844,59619.0,59618.0,2.00626172]
[1724018534156,0.00844,59619.0,59618.0,1.59987918]
[1724018534514,0.00844,59619.0,59618.0,1.52236324]
[1724018534648,0.00844,59619.0,59618.0,1.18427008]
[1724018534849,0.00844,59619.0,59618.0,1.21166473]
[1724018535032,0.00844,59619.0,59618.0,1.16148183]
[1724018535872,0.00844,59619.0,59618.0,1.16248183]
[1724018536121,0.00844,59619.0,59618.0,1.21166573]
[1724018536498,0.00844,59619.0,59618.0,1.16248183]
[1724018536742,0.00844,59619.0,59618.0,1.78464827]
[1724018536960,0.00844,59619.0,59618.0,1.82792035]
[1724018537135,0.00844,59619.0,59618.0,2.38470141]
[1724018537352,0.00844,59619.0,59618.0,2.25024272]
[1724018538217,0.00803619,59619.0,59618.0,2.27533505]
[1724018538420,0.00803619,59619.0,59618.0,2.33413699]
[1724018538718,0.00803619,59619.0,59618.0,2.20867535]
[1724018538939,0.00803619,59619.0,59618.0,2.20867466]
[1724018539246,0.00803619,59619.0,59618.0,2.18221313]
[1724018539457,0.00803619,59619.0,59618.0,1.70023059]
[1724018539606,0.00803619,59619.0,59618.0,1.22775322]
[1724018539809,0.00803619,59619.0,59618.0,1.16148183]
[1724018540214,0.00803619,59619.0,59618.0,0.69182583]
[1724018540215,0.08823619,59619.0,59618.0,0.69182583]
[1724018540573,0.08823619,59619.0,59618.0,0.59182583]
[1724018540854,0.08823619,59619.0,59618.0,0.82665383]
[1724018541067,0.08770102,59619.0,59618.0,0.82665383]
[1724018541418,0.08770102,59619.0,59618.0,0.81265383]
[1724018541975,0.08770102,59619.0,59618.0,1.05948183]
[1724018542536,0.08770102,59619.0,59618.0,1.04748183]
[1724018542975,0.08770102,59619.0,59618.0,1.05948183]
[1724018543175,0.08770102,59619.0,59618.0,1.04748183]
[1724018543598,0.08770102,59619.0,59618.0,1.04748392]
[1724018543798,0.08770102,59619.0,59618.0,1.06048392]
[1724018544809,0.08770102,59619.0,59618.0,1.039998]
[1724018545011,0.08770102,59619.0,59618.0,1.06048389]
[1724018545339,0.08770102,59619.0,59618.0,1.04748389]
[1724018545757,0.08770102,59619.0,59618.0,1.06048389]
[1724018545939,0.08770102,59619.0,59618.0,1.04748389]
[1724018546347,0.08770102,59619.0,59618.0,1.06148389]
[1724018546545,0.08770102,59619.0,59618.0,0.82665589]
[1724018546751,0.15360102,59619.0,59618.0,0.02048589]
[1724018547096,0.15360102,59619.0,59618.0,0.117414]
[1724018547470,0.15360102,59619.0,59618.0,0.13790224]
[1724018548061,0.15360102,59619.0,59618.0,0.15190224]
[1724018548654,0.15360102,59619.0,59618.0,0.13790224]
[1724018548832,0.15360102,59619.0,59618.0,0.15190224]
[1724018549031,0.15360102,59619.0,59618.0,0.13790224]
[1724018549187,0.15360102,59619.0,59618.0,0.14990224]
[1724018550273,0.15360102,59619.0,59618.0,0.82465824]
[1724018550474,0.15360102,59619.0,59618.0,1.05948624]
[1724018550888,0.00750102,59619.0,59618.0,1.05948624]
[1724018551489,0.00750102,59619.0,59618.0,1.59086878]
[1724018551699,0.00750102,59619.0,59618.0,1.60011055]
[1724018551905,0.00750102,59619.0,59618.0,1.63414419]
[1724018552727,0.0772,59629.0,59628.0,0.586972]
[1724018552931,0.0772,59629.0,59628.0,0.60746024]
[1724018554896,0.0772,59629.0,59628.0,0.60846024]
[1724018555098,0.0772,59629.0,59628.0,0.60746024]
[1724018555320,0.0772,59629.0,59628.0,0.60745694]
[1724018555524,0.0772,59629.0,59628.0,0.61545694]
[1724018555696,0.0772,59629.0,59628.0,0.594972]
[1724018555995,0.0772,59629.0,59628.0,0.61545694]